bitfinex-derivatives/quotes_SOLF0:USTF0_20250319
["timestamp","ask_amount","ask_price","bid_price","bid_amount"]
[1742386905618,12.62811552,128.05,128.01,33.26]
[1742386905816,12.57614992,128.04,128.01,33.26]
[1742386906118,7.8116,128.03,128.0,41.0528]
[1742386906318,12.57614992,128.04,128.0,41.0528]
[1742386906519,7.8119,128.02,128.0,41.0528]
[1742386906914,7.86241694,128.02,128.0,7.8128]
[1742386907111,0.05051694,128.02,128.0,53.62894992]
[1742386907516,12.57614992,128.01,127.95,7.8158]
[1742386907817,7.8146,127.98,127.94,45.81614992]
[1742386908215,7.8154,127.97,127.94,45.81614992]
[1742386908725,12.63306242,127.99,127.95,20.39224992]
[1742386909124,7.8146,127.98,127.95,20.39224992]
[1742386910131,7.815,127.97,127.95,12.57614992]
[1742386910335,7.815,127.97,127.94,53.63264992]
[1742386910728,7.8156,127.96,127.94,33.24]
[1742386911134,7.87320594,127.96,127.93,1.56335495]
[1742386911341,7.87320594,127.96,127.93,34.80335495]
[1742386911342,7.8163,127.95,127.93,34.80335495]
[1742386911639,0.05760594,127.96,127.93,34.80335495]
[1742386911936,7.87360594,127.96,127.93,42.62065495]
[1742386912138,7.87360594,127.96,127.93,34.80335495]
[1742386912438,0.05760594,127.96,127.93,47.39950487]
[1742386913839,0.05760594,127.96,127.92,12.57614992]
[1742386913840,12.63375586,127.96,127.92,12.57614992]
[1742386914039,12.63375586,127.96,127.93,33.26]
[1742386914830,12.63375586,127.96,127.93,41.0771]
[1742386915344,12.63375586,127.96,127.93,33.26]
[1742386915542,20.44935586,127.96,127.93,33.26]
[1742386916241,20.44935586,127.96,127.92,7.8174]
[1742386916430,20.44935586,127.96,127.93,33.26]
[1742386916840,20.44935586,127.96,127.93,41.0773]
[1742386917240,12.63375586,127.96,127.93,41.0773]
[1742386917529,0.05760594,127.96,127.93,41.0773]
[1742386917936,7.87320594,127.96,127.93,41.0773]
[1742386918837,0.05760594,127.96,127.94,7.8166]
[1742386919145,0.05760594,127.96,127.93,33.26]
[1742386919445,0.05760594,127.96,127.93,45.83614992]
[1742386919943,0.05760594,127.96,127.94,7.8163]
[1742386920141,0.05760594,127.96,127.93,33.26]
[1742386920537,0.05760594,127.96,127.95,7.8161]
[1742386921538,6.28807496,128.01,127.98,7.8141]
[1742386921744,20.38884992,128.01,127.98,7.8141]
[1742386922047,7.8127,128.01,127.97,12.57614992]
[1742386922438,12.57614992,128.02,127.99,12.57614992]
[1742386922439,7.8122,128.02,127.99,12.57614992]
[1742386922639,281.97614992,128.04,128.0,33.24]
[1742386922640,12.57614992,128.03,128.0,33.24]
[1742386922946,12.62682856,128.02,128.0,33.24]
[1742386923340,12.62682856,128.02,127.99,0.05018746]
[1742386923839,0.05067864,128.02,127.99,12.62633738]
[1742386924036,0.05067864,128.02,128.01,12.57614992]
[1742386924236,0.05067864,128.02,128.01,53.62864992]
[1742386924640,0.05067864,128.02,128.01,33.24]
[1742386925943,7.86257864,128.02,127.99,12.17788746]
[1742386926143,20.43872856,128.02,127.99,43.21268746]
[1742386926743,7.8125,128.01,127.99,41.10358746]
[1742386926945,7.8125,128.01,127.99,33.29018746]
[1742386927443,0.05067864,128.02,127.99,33.29018746]
[1742386927644,0.05067864,128.02,127.99,45.86633738]
[1742386927845,0.05067864,128.02,128.0,20.38864992]
[1742386931251,7.86267864,128.02,128.0,12.57614992]
[1742386931450,7.86267864,128.02,127.99,53.67973738]
[1742386932047,0.05067864,128.02,128.0,7.8131]
[1742386932251,0.05067864,128.02,127.99,45.86633738]
[1742386932451,7.86287864,128.02,128.0,7.813]
[1742386933055,7.86287864,128.02,127.99,53.67993738]
[1742386934643,20.43902856,128.02,127.99,41.10378746]
[1742386934849,7.86287864,128.02,127.99,41.10378746]
[1742386935056,7.86287864,128.02,127.99,53.67993738]
[1742386935354,7.8125,128.01,127.99,53.67993738]
[1742386935545,7.8125,128.01,127.99,33.29018746]
[1742386936252,7.8131,128.0,127.99,0.05018746]
[1742386936554,7.8131,128.0,127.99,33.27018746]
[1742386938360,7.8131,128.0,127.99,0.05018746]
[1742386939158,20.38924992,128.0,127.99,0.05018746]
[1742386942456,7.86277864,128.02,127.99,0.05018746]
[1742386942660,7.86277864,128.02,127.99,45.84633738]
[1742386943458,7.8126,128.01,127.99,53.65973738]
[1742386943660,0.05067864,128.02,127.99,53.65973738]
[1742386943858,0.05067864,128.02,127.99,45.84633738]
[1742386944060,7.86297864,128.02,127.99,53.65963738]
[1742386944259,0.05067864,128.02,127.99,41.08348746]
[1742386944560,12.62682856,128.02,127.99,33.27018746]
[1742386944951,0.05067864,128.02,127.99,41.08368746]
[1742386945561,7.86307864,128.02,127.99,41.08368746]
[1742386945760,7.86307864,128.02,128.0,7.8131]
[1742386945955,7.86307864,128.02,127.99,33.27018746]
[1742386946157,7.86307864,128.02,128.0,7.8131]
[1742386946352,7.8125,128.01,127.99,33.27018746]
[1742386947760,7.8131,128.0,127.99,33.27018746]
[1742386948261,7.8128,128.01,127.99,33.27018746]
[1742386948962,0.05067864,128.02,127.99,33.27018746]
[1742386949465,12.57614992,128.01,127.99,33.27018746]
[1742386949657,12.57614992,128.01,127.99,0.05018746]
[1742386950261,7.8128,128.01,127.99,0.05018746]
[1742386950763,7.8131,128.0,127.99,0.05018746]
[1742386955358,12.62682856,128.02,127.99,0.05018746]
[1742386955564,7.8128,128.01,127.99,0.05018746]
[1742386956162,7.8128,128.01,127.99,7.86378746]
[1742386956355,0.05067864,128.02,128.0,33.2]
[1742386957568,12.57614992,128.01,127.99,0.05018746]
[1742386958366,7.8131,128.0,127.99,0.05018746]
[1742386959469,20.38924992,128.0,127.99,0.05018746]
[1742386962669,20.38924992,128.0,127.93,6.28807496]
[1742386962670,7.816,127.96,127.93,6.28807496]
[1742386962867,12.57614992,127.98,127.93,12.57614992]
[1742386963074,12.57614992,127.97,127.94,33.18]
[1742386963277,12.57614992,127.97,127.93,33.18]
[1742386963278,7.8161,127.95,127.93,33.18]
[1742386963473,5.3469308,127.94,127.93,33.18]
[1742386964171,7.86783829,127.95,127.93,33.18]
[1742386964376,0.05173829,127.95,127.93,33.18]
[1742386964572,5.34853678,127.94,127.91,33.18]
[1742386964774,5.34853678,127.93,127.91,33.18]
[1742386964974,7.818,127.92,127.89,20.39564992]
[1742386965175,12.57614992,127.94,127.9,33.18]
[1742386965369,0.05599271,127.92,127.9,33.18]
[1742386965780,0.05599271,127.92,127.88,1.36033148]
[1742386966083,5.34542349,127.91,127.89,45.75614992]
[1742386966289,7.87419271,127.92,127.89,40.9996]
[1742386966587,5.34184212,127.91,127.89,53.57574992]
[1742386966783,7.87419271,127.92,127.89,53.57574992]
[1742386967083,5.34040351,127.91,127.89,20.39574992]
[1742386967286,5.33595886,127.9,127.89,7.8196]
[1742386967489,5.33595886,127.9,127.89,20.39574992]
[1742386967790,5.33595886,127.9,127.89,45.75614992]
[1742386968185,0.05599271,127.92,127.89,45.75614992]
[1742386968382,0.05599271,127.92,127.91,20.39474992]
[1742386968582,5.38808827,127.92,127.91,20.39474992]
[1742386969390,0.05599271,127.92,127.91,20.39474992]
[1742386969587,282.09614992,127.98,127.94,7.8166]
[1742386969789,5.32793157,127.97,127.94,7.8166]
[1742386969992,5.32793157,127.96,127.94,7.8166]
[1742386970186,5.32793157,127.95,127.94,7.8166]
[1742386970388,5.32793157,127.95,127.94,20.39274992]
[1742386970685,22.68324992,128.01,127.97,7.8149]
[1742386970886,22.68324992,128.01,127.97,40.9949]
[1742386971090,0.05015133,128.0,127.98,0.05889997]
[1742386971290,7.86325133,128.0,127.98,0.05889997]
[1742386971490,20.43940125,128.0,127.98,0.05889997]
[1742386971689,12.57614992,127.99,127.98,0.05889997]
[1742386972193,12.62630125,128.0,127.98,0.05889997]
[1742386972385,12.57614992,127.99,127.98,0.05889997]
[1742386972791,20.38984992,127.99,127.98,0.05889997]
[1742386974195,7.8155,127.97,127.94,12.57614992]
[1742386974386,7.8155,127.97,127.94,20.39244992]
[1742386974796,33.18,128.0,127.88,4.203]
[1742386974992,12.57614992,127.97,127.92,20.39374992]
[1742386975194,0.05395576,127.95,127.92,53.57374992]
[1742386975396,7.87045576,127.95,127.92,53.57374992]
[1742386975798,7.87045576,127.95,127.93,7.8172]
[1742386976094,0.05395576,127.95,127.93,7.8172]
[1742386976799,0.05395576,127.95,127.92,53.57374992]
[1742386976800,7.87005576,127.95,127.92,53.57374992]
[1742386977286,7.87005576,127.95,127.93,7.8173]
[1742386977693,7.87005576,127.95,127.92,12.57614992]
[1742386977992,0.05395576,127.95,127.92,45.75614992]
[1742386978299,0.05395576,127.95,127.93,12.57614992]
[1742386978891,0.05395576,127.95,127.92,45.75614992]
[1742386979092,7.87055576,127.95,127.92,53.57374992]
[1742386979299,0.05395576,127.95,127.92,40.9976]
[1742386979497,12.63010568,127.95,127.9,12.57614992]
[1742386979699,7.8178,127.93,127.9,53.57504992]
[1742386980196,7.817,127.94,127.91,7.8185]
[1742386980496,12.63010568,127.95,127.9,45.75614992]
[1742386980697,7.8177,127.93,127.9,53.57504992]
[1742386980893,0.05395576,127.95,127.91,12.57614992]
[1742386981200,0.05395576,127.95,127.93,20.39304992]
[1742386981400,0.05395576,127.95,127.93,53.57304992]
[1742386981697,0.05395576,127.95,127.94,12.57614992]
[1742386981998,0.05395576,127.95,127.94,20.39284992]
[1742386982194,12.57614992,128.01,127.94,12.57614992]
[1742386982394,7.8141,127.99,127.97,12.57614992]
[1742386983397,7.8143,127.98,127.97,0.05152922]
[1742386984699,7.86585708,127.99,127.97,0.05152922]
[1742386985296,7.8143,127.98,127.97,0.05152922]
[1742386986995,20.39044992,127.98,127.97,0.05152922]
[1742386987702,7.8166,127.95,127.93,45.73614992]
[1742386988195,12.57614992,127.96,127.93,33.16]
[1742386988800,12.6255915,127.96,127.91,45.73614992]
[1742386989198,12.6255915,127.96,127.91,53.55434992]
[1742386989503,12.6255915,127.96,127.91,20.39434992]
[1742386989693,7.8174,127.93,127.91,53.55434992]
[1742386989903,7.8174,127.93,127.91,33.16]
[1742386990094,7.8683519,127.93,127.91,45.73614992]
[1742386990500,7.8683519,127.93,127.9,7.8189]
[1742386990501,0.0509519,127.93,127.9,33.16]
[1742386990996,7.819,127.91,127.89,45.73614992]
[1742386991197,12.62710182,127.93,127.89,33.16]
[1742386991596,0.0509519,127.93,127.89,12.57614992]
[1742386992097,0.0509519,127.93,127.9,12.57614992]
[1742386992500,0.0509519,127.93,127.89,12.57614992]
[1742386992708,7.8182,127.92,127.89,20.39564992]
[1742386992998,12.57614992,127.92,127.83,2.1332]
[1742386993200,7.8203,127.89,127.86,20.39754992]
[1742386993400,7.87978046,127.89,127.86,20.39754992]
[1742386993707,0.05948046,127.89,127.87,20.39694992]
[1742386993906,0.05948046,127.89,127.88,12.57614992]
[1742386994298,7.87958046,127.89,127.87,12.57614992]
[1742386994500,0.05948046,127.89,127.87,45.73614992]
[1742386995807,0.05948046,127.89,127.88,12.57614992]
[1742386996308,0.05948046,127.89,127.87,40.9809]
[1742386996604,0.05948046,127.89,127.88,12.57614992]
[1742386997600,0.05948046,127.89,127.88,20.39654992]
[1742386998004,0.05948046,127.89,127.88,12.57614992]
[1742386999405,0.05948046,127.89,127.87,45.73614992]
[1742386999803,0.05948046,127.89,127.87,33.16]
[1742387000004,0.05948046,127.89,127.86,12.57614992]
[1742387000401,0.05948046,127.89,127.85,33.16]
[1742387000402,7.8214,127.87,127.85,12.57614992]
[1742387000603,7.8214,127.87,127.85,45.73614992]
[1742387001002,7.8216,127.86,127.85,45.73614992]
[1742387001206,7.8216,127.86,127.85,12.57614992]
[1742387001603,7.8226,127.85,127.82,7.8238]
[1742387001807,12.57614992,127.88,127.83,12.57614992]
[1742387002012,0.05834961,127.85,127.84,12.57614992]
[1742387002309,0.05834961,127.85,127.83,40.9834]
[1742387002614,48.04094992,127.89,127.84,12.57614992]
[1742387002807,7.8219,127.86,127.84,12.57614992]
[1742387003109,0.05952896,127.88,127.85,12.57614992]
[1742387003410,7.88032896,127.88,127.86,45.73614992]
[1742387003611,2.3048,127.89,127.86,45.73614992]
[1742387003907,271.8628,127.9,127.88,12.57614992]
[1742387003908,269.7,127.9,127.88,12.57614992]
[1742387004207,0.04985327,127.89,127.88,12.57614992]
[1742387005112,0.04985327,127.89,127.87,19.8073664]
[1742387005812,0.04985327,127.89,127.86,33.16]
[1742387006007,7.8205,127.88,127.85,19.8073664]
[1742387006208,7.8205,127.88,127.85,60.7891664]
[1742387007109,7.8211,127.87,127.85,40.9818]
[1742387007304,0.04985327,127.89,127.85,33.16]
[1742387008112,7.8219,127.86,127.82,33.16]
[1742387008515,0.05746167,127.85,127.83,7.8232]
[1742387009119,0.05746167,127.85,127.82,40.9839]
[1742387009315,0.05746167,127.85,127.82,33.16]
[1742387009517,7.88016167,127.85,127.82,40.9838]
[1742387009720,7.88016167,127.85,127.82,7.8238]
[1742387009919,0.05746167,127.85,127.82,19.8073664]
[1742387011924,0.05746167,127.85,127.84,27.6302664]
[1742387012120,0.05746167,127.85,127.84,60.7702664]
[1742387014517,0.05746167,127.85,127.84,33.14]
[1742387014912,7.87966167,127.85,127.84,33.14]
[1742387015319,7.87966167,127.85,127.82,33.14]
[1742387016018,7.87966167,127.85,127.81,19.8073664]
[1742387016216,7.8229,127.84,127.82,33.14]
[1742387016729,7.8236,127.83,127.79,22.1115664]
[1742387016931,7.8236,127.83,127.8,33.14]
[1742387017126,0.04918241,127.82,127.81,7.8244]
[1742387017428,7.8217,127.86,127.81,19.8073664]
[1742387017626,0.05818313,127.83,127.81,19.8073664]
[1742387017826,0.05818313,127.83,127.82,7.8241]
[1742387021522,0.05818313,127.83,127.82,40.9641]
[1742387021821,269.7,127.9,127.88,7.8203]
[1742387022025,35.3393,127.94,127.86,52.9473664]
[1742387022221,12.0845,127.92,127.86,52.9473664]
[1742387022422,2.1993,127.94,127.88,19.8073664]
[1742387022722,2.1993,127.94,127.89,33.14]
[1742387023125,0.05468969,127.93,127.9,0.05110368]
[1742387023526,7.8186,127.91,127.9,0.05110368]
[1742387024123,19.86205609,127.93,127.85,33.14]
[1742387024323,19.8073664,127.93,127.85,33.14]
[1742387024628,7.8205,127.88,127.85,33.14]
[1742387025228,0.0591411,127.88,127.85,33.16127984]
[1742387025729,0.0591411,127.88,127.85,40.98347984]
[1742387025930,0.0591411,127.88,127.85,33.16127984]
[1742387026723,0.0591411,127.88,127.85,40.98317984]
[1742387026927,0.0591411,127.88,127.85,33.16127984]
[1742387027531,7.8800411,127.88,127.85,33.14127984]
[1742387028124,7.8213,127.87,127.85,33.14127984]
[1742387028332,0.0591411,127.88,127.85,0.02127984]
[1742387028833,7.8216,127.86,127.85,0.02127984]
[1742387031134,35.4499664,127.87,127.75,33.12]
[1742387031428,7.8253,127.8,127.78,19.8073664]
[1742387031632,33.12,127.84,127.78,52.9273664]
[1742387031832,33.12,127.85,127.78,52.9273664]
[1742387032229,0.05410508,127.83,127.78,52.9273664]
[1742387032431,269.89410508,127.83,127.76,52.9273664]
[1742387032631,33.12,127.82,127.76,52.9273664]
[1742387033032,0.05635874,127.8,127.76,52.9273664]
[1742387033233,0.05635874,127.8,127.76,19.8073664]
[1742387033535,7.826,127.79,127.76,19.8073664]
[1742387033740,0.05635874,127.8,127.76,19.8073664]
[1742387033935,0.05635874,127.8,127.76,52.9273664]
[1742387034641,0.05635874,127.8,127.76,60.7546664]
[1742387034940,0.05635874,127.8,127.76,52.9273664]
[1742387035145,0.05635874,127.8,127.77,7.8271]
[1742387035441,0.05635874,127.8,127.76,52.9273664]
[1742387035635,7.88205874,127.8,127.76,52.9273664]
[1742387036142,0.05635874,127.8,127.76,52.9273664]
[1742387036838,7.8263,127.79,127.76,52.9273664]
[1742387037035,7.8263,127.79,127.76,19.8073664]
[1742387037238,7.8263,127.79,127.77,33.12]
[1742387037736,7.8265,127.78,127.75,27.6352664]
[1742387038041,7.8265,127.78,127.76,33.12]
[1742387038442,0.05635874,127.8,127.76,33.12]
[1742387038939,7.88205874,127.8,127.76,40.9474]
[1742387039543,7.826,127.79,127.76,40.9474]
[1742387039944,0.05635874,127.8,127.76,40.9474]
[1742387040143,7.88205874,127.8,127.76,40.9474]
[1742387040445,7.88205874,127.8,127.77,7.827]
[1742387040942,0.05635874,127.8,127.77,7.827]
[1742387041243,0.05635874,127.8,127.76,33.12]
[1742387041843,0.05635874,127.8,127.78,7.8265]
[1742387042241,0.05635874,127.8,127.77,19.8073664]
[1742387043146,0.05635874,127.8,127.79,7.8259]
[1742387043346,0.05635874,127.8,127.79,40.9459]
[1742387043547,0.05635874,127.8,127.79,33.12]
[1742387045252,0.05635874,127.8,127.79,40.9459]
[1742387046856,0.05635874,127.8,127.79,60.7532664]
[1742387047752,7.8232,127.84,127.81,7.8243]
[1742387047953,53.3004564,127.87,127.81,7.8243]
[1742387048149,53.3004564,127.87,127.79,52.9273664]
[1742387048354,7.8238,127.83,127.8,7.8248]
[1742387048851,7.8238,127.83,127.8,7.87739737]
[1742387048852,7.88043191,127.83,127.8,7.87739737]
[1742387049057,7.8242,127.82,127.8,0.05259737]
[1742387049752,7.8242,127.82,127.8,7.87759737]
[1742387049958,7.88043191,127.83,127.8,7.87759737]
[1742387050260,0.05663191,127.83,127.8,0.05259737]
[1742387050458,7.8247,127.81,127.8,0.05259737]
[1742387051255,19.8073664,127.81,127.74,7.8287]
[1742387051460,19.8073664,127.81,127.74,40.9287]
[1742387051672,7.8276,127.77,127.74,7.8287]
[1742387051959,33.1,127.8,127.73,10.0873]
[1742387052156,7.8281,127.76,127.73,35.358]
[1742387052451,269.9,127.82,127.78,7.8261]
[1742387052653,269.9,127.82,127.78,33.1]
[1742387053060,59.3660664,127.86,127.78,33.1]
[1742387053560,0.05222536,127.83,127.81,0.05366487]
[1742387053859,7.8241,127.82,127.78,33.1]
[1742387054256,7.8244,127.82,127.78,33.1]
[1742387054662,0.05222536,127.83,127.78,40.926]
[1742387055164,0.05222536,127.83,127.78,33.1]
[1742387055657,7.8256,127.8,127.78,33.1]
[1742387055865,19.8073664,127.84,127.78,40.9262]
[1742387056163,0.05207042,127.8,127.78,40.9262]
[1742387056670,0.05207042,127.8,127.79,7.8259]
[1742387056960,0.05207042,127.8,127.78,33.1]
[1742387057161,0.05207042,127.8,127.79,7.8259]
[1742387060166,0.05207042,127.8,127.78,40.9262]
[1742387060667,0.05207042,127.8,127.78,33.1]
[1742387061163,0.05207042,127.8,127.76,33.1]
[1742387061868,7.8262,127.79,127.76,40.9274]
[1742387062068,7.8262,127.79,127.76,33.1]
[1742387062470,7.8262,127.79,127.76,7.8273]
[1742387062670,7.8265,127.78,127.76,40.9273]
[1742387062867,7.8265,127.78,127.74,21.9570664]
[1742387063069,7.8265,127.78,127.75,40.9281]
[1742387063270,0.05039704,127.77,127.75,7.8281]
[1742387063470,0.05039704,127.77,127.75,40.9281]
[1742387063973,7.87759704,127.77,127.75,40.9281]
[1742387064170,7.87759704,127.77,127.75,33.1]
[1742387064566,0.05039704,127.77,127.73,2.258]
[1742387064768,0.05039704,127.77,127.74,33.08]
[1742387064970,0.05039704,127.77,127.73,33.08]
[1742387065363,0.05039704,127.77,127.72,33.08]
[1742387065868,7.829,127.74,127.72,40.9101]
[1742387066068,19.8073664,127.78,127.72,40.9101]
[1742387066372,0.05923326,127.74,127.72,33.08]
[1742387066773,0.05923326,127.74,127.73,33.08]
[1742387067775,0.05923326,127.74,127.73,40.9096]
[1742387067975,0.05923326,127.74,127.73,33.08]
[1742387068573,0.05923326,127.74,127.69,3.63997516]
[1742387068773,0.05923326,127.74,127.7,33.08]
[1742387069174,0.05923326,127.74,127.73,7.8296]
[1742387069376,0.05923326,127.74,127.7,52.8873664]
[1742387070281,0.05923326,127.74,127.73,7.8296]
[1742387070874,0.05923326,127.74,127.73,40.9096]
[1742387071777,309.6918,127.81,127.77,7.8271]
[1742387072371,309.6918,127.81,127.78,7.8265]
[1742387072576,276.6118,127.81,127.76,33.08]
[1742387072875,274.3314,127.81,127.76,33.08]
[1742387073080,0.05547426,127.8,127.77,0.0579059]
[1742387073479,0.05547426,127.8,127.78,7.8265]
[1742387073873,7.88087426,127.8,127.77,7.8845059]
[1742387075078,7.8261,127.79,127.77,0.0579059]
[1742387075982,7.88107426,127.8,127.77,7.8849059]
[1742387076283,0.05547426,127.8,127.77,0.0579059]
[1742387076481,0.05547426,127.8,127.78,7.8261]
[1742387077782,0.05547426,127.8,127.77,0.0579059]
[1742387077983,0.05547426,127.8,127.78,33.08]
[1742387078681,0.05547426,127.8,127.79,7.8259]
[1742387079184,0.05547426,127.8,127.78,33.08]
[1742387079381,0.05547426,127.8,127.78,40.9061]
[1742387081186,7.88077426,127.8,127.78,33.08]
[1742387082383,0.05547426,127.8,127.78,40.9062]
[1742387082582,0.05547426,127.8,127.78,33.08]
[1742387082974,0.05547426,127.8,127.79,7.8259]
[1742387088090,0.05547426,127.8,127.77,33.1179059]
[1742387088386,7.8262,127.79,127.77,0.0579059]
[1742387088580,0.05547426,127.8,127.77,33.1179059]
[1742387089285,7.8259,127.79,127.77,33.1179059]
[1742387090181,7.8259,127.79,127.77,40.9449059]
[1742387090387,7.88097426,127.8,127.77,40.9449059]
[1742387090587,0.05547426,127.8,127.78,7.8261]
[1742387090886,0.05547426,127.8,127.77,33.1179059]
[1742387091185,0.05547426,127.8,127.78,7.8261]
[1742387091582,0.05547426,127.8,127.77,33.1179059]
[1742387093089,0.05547426,127.8,127.79,7.8259]
[1742387096090,7.426e-05,127.8,127.79,7.8259]
[1742387096989,5.426e-05,127.81,127.8,7.8253]
[1742387097187,5.426e-05,127.81,127.8,60.6926664]
[1742387098092,7.8215,127.87,127.84,7.8226]
[1742387098387,0.05981174,127.87,127.84,40.8826]
[1742387098594,7.822,127.86,127.84,33.11980755]
[1742387100491,0.05981174,127.87,127.84,33.11980755]
[1742387100993,7.822,127.86,127.84,33.11980755]
[1742387101599,7.8222,127.85,127.84,33.11980755]
[1742387101987,0.05981174,127.87,127.84,33.11980755]
[1742387102192,7.822,127.86,127.84,40.94260755]
[1742387102588,0.05981174,127.87,127.85,7.8219]
[1742387103086,0.05981174,127.87,127.84,33.11980755]
[1742387103687,7.822,127.86,127.84,33.11980755]
[1742387104590,0.05981174,127.87,127.84,33.11980755]
[1742387105293,7.8222,127.86,127.84,33.11980755]
[1742387106091,0.05981174,127.87,127.84,33.11980755]
[1742387106292,0.05981174,127.87,127.84,52.92717395]
[1742387107201,0.05981174,127.87,127.86,7.8216]
[1742387108791,269.92,127.91,127.86,7.8216]
[1742387108792,2.2402,127.93,127.86,19.8073664]
[1742387108996,7.8183,127.92,127.88,19.8073664]
[1742387109201,7.8183,127.92,127.89,33.04]
[1742387109399,7.8183,127.92,127.89,40.8595]
[1742387109997,7.8187,127.91,127.89,33.09769789]
[1742387110394,7.86780446,127.92,127.89,40.91719789]
[1742387111498,7.86780446,127.92,127.9,7.8191]
[1742387112002,0.04950446,127.92,127.89,33.09769789]
[1742387112399,19.8073664,127.98,127.9,19.8073664]
[1742387112600,7.8171,127.94,127.91,7.8182]
[1742387112899,7.8171,127.94,127.92,33.02]
[1742387113494,7.87596848,127.94,127.92,33.08009356]
[1742387113703,0.05886848,127.94,127.93,7.8174]
[1742387114091,0.05886848,127.94,127.92,33.08009356]
[1742387115301,0.05886848,127.94,127.93,7.8174]
[1742387119300,0.05886848,127.94,127.92,52.88745996]
[1742387119804,0.05886848,127.94,127.93,7.8174]
[1742387122110,14.251,128.0,127.92,72.69482636]
[1742387122310,14.251,128.0,127.95,19.8073664]
[1742387122611,6.4377,128.0,127.96,33.0]
[1742387122804,14.2509,128.0,127.97,7.8146]
[1742387123209,14.31064399,128.0,127.97,7.87100319]
[1742387123407,14.31064399,128.0,127.98,7.8142]
[1742387123709,2.22384399,128.0,127.98,7.8142]
[1742387124116,10.03694399,128.0,127.98,7.8142]
[1742387124409,2.22384399,128.0,127.97,7.87100319]
[1742387124605,2.22384399,128.0,127.97,0.05640319]
[1742387125610,7.8143,127.98,127.97,0.05640319]
[1742387127202,2.22384399,128.0,127.97,7.87130319]
[1742387127812,2.22384399,128.0,127.98,7.8142]
[1742387128111,2.22384399,128.0,127.97,0.05640319]
[1742387128301,2.22384399,128.0,127.97,7.87100319]
[1742387128710,10.03694399,128.0,127.97,7.87100319]
[1742387129610,10.03694399,128.0,127.98,7.8143]
[1742387130409,0.05974399,128.0,127.99,7.8137]
[1742387130913,0.05974399,128.0,127.97,0.05640319]
[1742387131907,0.05974399,128.0,127.98,7.814]
[1742387133312,0.05974399,128.0,127.99,7.8137]
[1742387134213,0.05974399,128.0,127.97,12.71687481]
[1742387134414,12.72021561,128.0,127.97,0.05640319]
[1742387134810,12.66047162,127.98,127.97,0.05640319]
[1742387135216,20.47477162,127.98,127.97,0.05640319]
[1742387135419,12.66047162,127.98,127.94,32.98]
[1742387135609,12.66047162,127.96,127.94,32.98]
[1742387135817,20.47587162,127.97,127.94,32.98]
[1742387136413,20.47587162,127.97,127.94,33.0344773]
[1742387136617,7.86725303,127.97,127.94,33.0344773]
[1742387137217,0.05185303,127.97,127.95,19.7928819]
[1742387137821,0.05185303,127.97,127.94,33.0344773]
[1742387138216,0.05185303,127.97,127.95,32.98]
[1742387138520,7.8158,127.96,127.95,32.98]
[1742387138918,7.86705303,127.97,127.95,32.98]
[1742387140515,7.8155,127.96,127.95,32.98]
[1742387141122,7.86705303,127.97,127.95,32.98]
[1742387141722,0.05185303,127.97,127.95,32.98]
[1742387142321,0.05185303,127.97,127.95,40.7958]
[1742387144122,0.05185303,127.97,127.96,7.8155]
[1742387145129,7.8128,128.01,127.96,19.7928819]
[1742387145324,7.8131,128.0,127.96,19.7928819]
[1742387145725,7.8131,128.0,127.96,27.6081819]
[1742387146428,2.1361,128.03,127.97,0.05601021]
[1742387146429,7.86724244,127.99,127.97,0.05601021]
[1742387146620,0.05354244,127.99,127.97,0.05601021]
[1742387147027,7.8143,127.98,127.97,0.05601021]
[1742387153841,7.8143,127.98,127.91,1.35993278]
[1742387153842,7.8165,127.95,127.92,7.8177]
[1742387154036,52.7528819,127.98,127.89,2.1585]
[1742387154236,7.8179,127.93,127.9,40.7789]
[1742387154438,19.7928819,127.96,127.9,32.96]
[1742387154736,7.8182,127.92,127.9,32.96]
[1742387155142,7.8182,127.92,127.9,33.01785922]
[1742387155642,7.8176,127.93,127.9,33.01785922]
[1742387156437,7.86852157,127.94,127.91,7.8183]
[1742387156941,0.05142157,127.94,127.91,7.8183]
[1742387157141,7.86852157,127.94,127.91,7.8183]
[1742387157941,7.8177,127.93,127.9,40.83665922]
[1742387159143,7.8177,127.93,127.91,12.67197742]
[1742387159539,7.8177,127.93,127.91,20.49047742]
[1742387160242,7.8177,127.93,127.91,12.67197742]
[1742387161249,7.818,127.92,127.91,12.67197742]
[1742387161547,0.05142157,127.94,127.91,12.67197742]